bitfinex-derivatives/quotes_BTCF0:USTF0_20210705
["timestamp","ask_amount","ask_price","bid_price","bid_amount"]
[1625525278007,5.35826,34012.0,34011.0,1.20741717]
[1625525278105,5.41726,34012.0,34011.0,1.20741717]
[1625525278405,6.13898632,34012.0,34011.0,1.20741717]
[1625525278607,6.13898632,34012.0,34008.0,1.20743487]
[1625525279308,6.13898632,34012.0,34007.0,1.20745725]
[1625525279807,6.13898632,34012.0,34004.0,1.20498981]
[1625525280107,6.13898632,34012.0,34002.0,0.24057544]
[1625525280108,6.13898632,34012.0,34003.0,1.20488448]
[1625525280307,6.07998632,34012.0,34003.0,1.20488448]
[1625525280407,0.48115088,34004.0,34003.0,1.20488448]
[1625525281107,0.73882088,34004.0,34003.0,1.20488448]
[1625525281510,0.79582088,34004.0,34003.0,1.20488448]
[1625525281810,0.79582088,34004.0,34002.0,0.24057544]
[1625525282411,0.85482088,34004.0,34002.0,0.24057544]
[1625525282511,0.91382088,34004.0,34002.0,0.24057544]
[1625525282613,0.91382088,34004.0,34001.0,1.20294309]
[1625525282712,0.91382088,34004.0,34000.0,1.20309411]
[1625525283314,0.91382088,34004.0,33997.0,1.20318412]
[1625525283870,0.91382088,34004.0,33995.0,0.24057544]
[1625525284469,0.48115088,33996.0,33995.0,0.24057544]
[1625525284568,0.73510088,33996.0,33995.0,0.24057544]
[1625525284871,0.73510088,33996.0,33994.0,1.20105124]
[1625525284970,0.73510088,33996.0,33995.0,1.20102957]
[1625525285524,0.73510088,33996.0,33994.0,1.19931079]
[1625525285620,4.33540088,33996.0,33994.0,1.19931079]
[1625525286223,4.33540088,33996.0,33993.0,1.19932296]
[1625525286323,4.33540088,33996.0,33993.0,1.25832296]
[1625525286425,0.24057544,33995.0,33993.0,1.25832296]
[1625525287174,0.24057544,33995.0,33994.0,1.02798797]
[1625525287477,0.29757544,33995.0,33994.0,1.02798797]
[1625525287577,0.35657544,33995.0,33994.0,1.02798797]
[1625525287676,0.35657544,33995.0,33993.0,1.02682165]
[1625525287777,0.61335544,33995.0,33993.0,1.02682165]
[1625525288079,0.61335544,33995.0,33992.0,0.58287625]
[1625525288428,0.61335544,33995.0,33992.0,0.34230081]
[1625525288528,0.24057544,33993.0,33992.0,0.34230081]
[1625525288628,0.29757544,33993.0,33992.0,0.34230081]
[1625525288827,0.29757544,33993.0,33991.0,0.34231275]
[1625525289077,0.35657544,33993.0,33991.0,0.34231275]
[1625525289178,0.35657544,33993.0,33990.0,0.34228089]
[1625525289529,0.35657544,33993.0,33987.0,0.24057544]
[1625525289530,0.35657544,33993.0,33989.0,0.34189286]
[1625525290331,0.35657544,33993.0,33986.0,0.34191533]
[1625525290429,0.41557544,33993.0,33986.0,0.34191533]
[1625525290529,0.48115088,33987.0,33986.0,0.34191533]
[1625525290631,0.92588088,33987.0,33986.0,0.34191533]
[1625525290730,0.92588088,33987.0,33983.0,0.24057544]
[1625525290931,0.92588088,33987.0,33982.0,0.34195461]
[1625525291584,0.92588088,33987.0,33980.0,0.582051]
[1625525292032,0.92588088,33987.0,33980.0,0.34147556]
[1625525292333,0.92588088,33987.0,33979.0,0.34148359]
[1625525292432,3.8966,33980.0,33979.0,0.34148359]
[1625525292532,4.75777088,33980.0,33979.0,0.34148359]
[1625525293384,4.75777088,33980.0,33978.0,0.34106548]
[1625525293998,4.70077088,33980.0,33978.0,0.40006548]
[1625525294085,4.70077088,33980.0,33978.0,0.34106548]
[1625525294185,4.70077088,33980.0,33978.0,0.40006548]
[1625525294486,4.70077088,33980.0,33978.0,0.34106548]
[1625525294586,4.70077088,33980.0,33978.0,0.40006548]
[1625525294686,4.70077088,33980.0,33978.0,0.45906548]
[1625525294787,4.70077088,33980.0,33979.0,0.34106105]
[1625525294888,4.70077088,33980.0,33979.0,0.40006105]
[1625525294987,4.70077088,33980.0,33979.0,0.45906105]
[1625525295095,0.48115088,33980.0,33979.0,0.71797105]
[1625525295296,0.48115088,33980.0,33979.0,0.37691]
[1625525296638,0.48115088,33980.0,33979.0,0.61748544]
[1625525298240,0.48115088,33980.0,33979.0,0.62097121]
[1625525299144,0.24057544,33980.0,33979.0,0.62097121]
[1625525300250,0.48115088,33987.0,33979.0,0.62097121]
[1625525300350,0.48115088,33987.0,33980.0,0.0877]
[1625525300452,0.48115088,33987.0,33980.0,0.1467]
[1625525300554,0.48115088,33987.0,33980.0,0.2091856]
[1625525300654,0.48115088,33987.0,33986.0,0.69109088]
[1625525300753,0.48115088,33987.0,33986.0,0.75009088]
[1625525300854,0.48115088,33987.0,33986.0,0.80909088]
[1625525301055,0.48115088,33987.0,33986.0,0.81257648]
[1625525302407,0.48115088,33987.0,33986.0,0.60263648]
[1625525302624,0.53815088,33987.0,33986.0,0.54363648]
[1625525302956,0.53815088,33987.0,33986.0,0.48463648]
[1625525303607,0.48115088,33987.0,33986.0,0.48463648]
[1625525303735,0.48115088,33987.0,33986.0,0.54363648]
[1625525305013,0.48115088,33987.0,33986.0,0.60263648]
[1625525305712,5.60425088,33987.0,33986.0,0.60263648]
[1625525305813,5.90568088,33987.0,33986.0,0.60263648]
[1625525306111,5.96268088,33987.0,33986.0,0.1214856]
[1625525306412,5.96268088,33987.0,33986.0,0.1302]
[1625525306911,5.96268088,33987.0,33986.0,0.0712]
[1625525308063,5.96268088,33987.0,33986.0,0.0122]
[1625525308567,5.96268088,33987.0,33982.0,0.01220064]
[1625525308767,5.96268088,33987.0,33986.0,0.01220064]
[1625525309016,5.96268088,33987.0,33982.0,0.01220064]
[1625525309371,5.48153,33987.0,33982.0,0.01220064]
[1625525310619,5.54053,33987.0,33982.0,0.01220064]
[1625525310820,0.48115088,33983.0,33982.0,0.01220064]
[1625525310919,0.53815088,33983.0,33982.0,0.01220064]
[1625525311218,0.53815088,33983.0,33979.0,0.01220138]
[1625525311321,0.59715088,33983.0,33979.0,0.01220138]
[1625525311419,0.59715088,33983.0,33979.0,0.00348611]
[1625525311519,0.65615088,33983.0,33975.0,0.02963141]
[1625525311722,0.65615088,33983.0,33975.0,0.01220157]
[1625525312219,3.9943,33978.0,33975.0,0.01220157]
[1625525312319,0.057,33977.0,33975.0,0.01220157]
[1625525312821,0.48115088,33976.0,33975.0,0.01220157]
[1625525313472,0.53815088,33976.0,33975.0,0.01220157]
[1625525313822,0.53815088,33976.0,33973.0,0.01220545]
[1625525314376,0.53815088,33976.0,33972.0,0.01220576]
[1625525314825,0.24057544,33973.0,33972.0,0.01220576]
[1625525314925,0.29757544,33973.0,33972.0,0.01220576]
[1625525315627,0.29757544,33973.0,33972.0,0.07120576]
[1625525315727,0.24057544,33973.0,33972.0,0.01220576]
[1625525316629,0.29757544,33973.0,33972.0,0.01220576]
[1625525318685,0.29757544,33973.0,33968.0,0.01220752]
[1625525318884,0.48115088,33969.0,33968.0,0.01220752]
[1625525318985,0.84857088,33969.0,33963.0,0.58170086]
[1625525319084,0.84857088,33969.0,33963.0,0.64070086]
[1625525319186,0.84857088,33969.0,33964.0,0.01220762]
[1625525319837,0.84857088,33969.0,33964.0,0.07120762]
[1625525319936,0.84857088,33969.0,33964.0,0.01220762]
[1625525320337,0.84857088,33969.0,33964.0,0.07120762]
[1625525320438,0.84857088,33969.0,33964.0,0.01220762]
[1625525320940,0.24057544,33965.0,33964.0,0.01220762]
[1625525321439,0.29757544,33965.0,33964.0,0.01220762]
[1625525322645,0.29757544,33965.0,33964.0,0.00348789]
[1625525322943,0.29757544,33965.0,33964.0,0.01220829]
[1625525323494,0.29757544,33965.0,33964.0,0.00348789]
[1625525324349,0.29757544,33965.0,33964.0,0.12148789]
[1625525324568,0.24057544,33965.0,33964.0,0.12148789]
[1625525325105,0.24057544,33965.0,33964.0,0.13020762]
[1625525325354,0.24057544,33965.0,33964.0,0.46351633]
[1625525325604,0.24057544,33965.0,33964.0,0.47223562]
[1625525326407,0.24057544,33965.0,33964.0,0.46351633]
[1625525326508,0.24057544,33965.0,33964.0,0.80539963]
[1625525327060,0.24057544,33965.0,33964.0,1.04597507]
[1625525327411,0.24057544,33965.0,33964.0,2.07318011]
[1625525328114,0.24057544,33965.0,33964.0,2.01418011]
[1625525328212,0.24057544,33965.0,33964.0,2.07318011]
[1625525329016,0.24057544,33965.0,33964.0,3.27369044]
[1625525329568,0.24057544,33965.0,33964.0,3.21469044]
[1625525329668,0.24057544,33965.0,33964.0,3.27369044]
[1625525330671,0.24057544,33965.0,33964.0,4.6455596]
[1625525332075,0.24057544,33965.0,33964.0,6.19227531]
[1625525333127,0.24057544,33965.0,33964.0,4.6455596]
[1625525333679,0.24057544,33965.0,33964.0,6.19599382]
[1625525333928,0.24057544,33965.0,33964.0,6.19250593]
[1625525334177,0.24057544,33965.0,33964.0,6.19599344]
[1625525335031,0.24057544,33965.0,33964.0,6.20676967]
[1625525335280,0.24057544,33965.0,33964.0,6.19599344]
[1625525336532,0.24057544,33965.0,33964.0,6.13699344]
[1625525337634,0.24057544,33965.0,33964.0,6.19599344]
[1625525337733,0.24057544,33965.0,33964.0,6.13699344]
[1625525337834,0.24057544,33965.0,33964.0,6.19599344]
[1625525338685,0.24057544,33965.0,33964.0,6.20677699]
[1625525338884,0.24057544,33965.0,33964.0,6.19599344]
[1625525339087,0.24057544,33965.0,33964.0,6.20677712]
[1625525339187,0.24057544,33965.0,33964.0,10.11797712]
[1625525339386,0.48115088,33969.0,33964.0,10.11797712]
[1625525339587,0.48115088,33969.0,33965.0,0.01078827]
[1625525339688,0.48115088,33969.0,33968.0,5.87200452]
[1625525339787,0.48115088,33969.0,33968.0,5.93100452]
[1625525339887,0.48115088,33969.0,33968.0,5.99000452]
[1625525340288,0.48115088,33969.0,33968.0,5.99349203]
[1625525341090,0.48115088,33969.0,33968.0,6.23406747]
[1625525341440,0.48115088,33969.0,33968.0,6.24486657]
[1625525344847,0.48115088,33969.0,33968.0,7.97394668]
[1625525345047,0.057,33978.0,33968.0,7.97394668]
[1625525345153,0.057,33978.0,33968.0,8.21452212]
[1625525345250,0.116,33978.0,33968.0,8.21452212]
[1625525345352,0.059,33978.0,33969.0,0.01429876]
[1625525345450,0.059,33978.0,33969.0,0.13229876]
[1625525345554,0.24057544,33980.0,33977.0,4.32492915]
[1625525345650,0.24057544,33980.0,33977.0,4.59851915]
[1625525345852,0.24057544,33980.0,33978.0,0.00348749]
[1625525345950,0.24057544,33980.0,33979.0,3.8414]
[1625525346053,0.24057544,33980.0,33979.0,3.9004]
[1625525346151,0.24057544,33980.0,33979.0,8.22538629]
[1625525346451,0.24057544,33980.0,33979.0,8.22887367]
[1625525347106,0.24057544,33980.0,33979.0,8.71002455]
[1625525347206,0.24057544,33980.0,33979.0,9.22907849]
[1625525349708,1.18507544,33985.0,33979.0,9.22907849]
[1625525349809,1.24407544,33985.0,33979.0,9.22907849]
[1625525350011,1.24407544,33985.0,33979.0,10.78797147]
[1625525350109,1.24407544,33985.0,33980.0,0.00348722]
[1625525350311,1.24407544,33985.0,33980.0,0.06248722]
[1625525350413,1.24407544,33985.0,33984.0,3.46459195]
[1625525350512,1.24407544,33985.0,33984.0,3.52359195]
[1625525350913,1.24407544,33985.0,33984.0,3.52707921]
[1625525351165,1.24407544,33985.0,33984.0,3.76765465]
[1625525351366,1.0035,33985.0,33984.0,3.76765465]
[1625525351566,1.0035,33985.0,33984.0,5.15353371]
[1625525351816,0.24057544,33990.0,33984.0,5.15353371]
[1625525352017,0.24057544,33990.0,33984.0,5.21253371]
[1625525352118,0.24057544,33990.0,33984.0,6.7714685]
[1625525352217,0.24057544,33990.0,33985.0,0.00348678]
[1625525352317,0.24057544,33990.0,33985.0,0.24644678]
[1625525352417,0.24057544,33990.0,33985.0,0.36444678]
[1625525352668,0.24057544,33990.0,33989.0,3.46409906]
[1625525352770,0.24057544,33990.0,33989.0,4.96773868]
[1625525352867,0.24057544,33993.0,33989.0,4.96773868]
[1625525352968,0.24057544,33993.0,33989.0,4.97122526]
[1625525353168,0.24057544,33993.0,33992.0,0.70446088]
[1625525353274,0.24057544,33993.0,33992.0,0.76346088]
[1625525353373,0.24057544,33993.0,33992.0,0.82246088]
[1625525353474,0.24057544,33997.0,33992.0,0.82246088]
[1625525353578,0.24057544,33997.0,33992.0,0.82594733]
[1625525353725,0.24057544,33997.0,33992.0,5.675412]
[1625525353824,0.24057544,33997.0,33993.0,0.00348643]
[1625525353926,0.24057544,33997.0,33993.0,0.12148643]
[1625525354127,0.24057544,33997.0,33996.0,2.25152137]
[1625525354225,0.24057544,33997.0,33996.0,2.31052137]
[1625525354326,0.24057544,33997.0,33996.0,2.36952137]
[1625525354427,0.24057544,33997.0,33996.0,4.96653703]
[1625525355126,0.24057544,33997.0,33996.0,5.20711247]
[1625525357481,0.24057544,33997.0,33996.0,3.82203745]
[1625525357986,0.29757544,33997.0,33996.0,3.82203745]
[1625525358834,0.29757544,33997.0,33996.0,1.5709331]
[1625525359187,0.29757544,33997.0,33996.0,0.70478179]
[1625525359290,0.57537544,33997.0,33996.0,0.70478179]
[1625525359385,0.57537544,33997.0,33996.0,0.64578179]
[1625525360338,0.57537544,33997.0,33996.0,0.58678179]
[1625525360542,0.57537544,33997.0,33996.0,0.24057544]
[1625525362142,0.91430986,33997.0,33996.0,0.24057544]
[1625525363343,0.67373442,33997.0,33995.0,0.34623548]
[1625525363444,0.67373442,33997.0,33995.0,0.40523548]
[1625525363995,0.48115088,33996.0,33995.0,0.40523548]
[1625525364096,0.53815088,33996.0,33995.0,0.40523548]
[1625525364547,0.057,33996.0,33995.0,0.40523548]
[1625525364697,0.116,33996.0,33995.0,0.40523548]
[1625525364798,0.057,33996.0,33995.0,0.40523548]
[1625525365703,0.057,33996.0,33995.0,0.059]
[1625525365952,0.53815088,33996.0,33995.0,0.059]
[1625525366202,0.87711007,33996.0,33995.0,0.059]
[1625525368211,1.3854709,33996.0,33995.0,0.059]
[1625525369260,1.72418406,33996.0,33995.0,0.059]
[1625525369710,1.78318406,33996.0,33995.0,0.059]
[1625525373522,1.78318406,33996.0,33993.0,0.58697925]
[1625525373637,1.78318406,33996.0,33993.0,0.34640381]
[1625525373737,1.84218406,33996.0,33993.0,0.34640381]
[1625525373838,0.01605869,33995.0,33993.0,0.34640381]
[1625525373936,0.07505869,33995.0,33993.0,0.34640381]
[1625525374025,0.24057544,33994.0,33993.0,0.34640381]
[1625525374141,4.90687544,33994.0,33993.0,3.81e-06]
[1625525374333,4.90687544,33994.0,33987.0,0.51960742]
[1625525374334,8.30549679,33994.0,33987.0,0.51960742]
[1625525374435,8.32155666,33994.0,33987.0,0.51960742]
[1625525374628,0.01606031,33993.0,33987.0,0.51960742]
[1625525374729,0.07506031,33993.0,33987.0,0.51960742]
[1625525374828,0.13406031,33993.0,33987.0,0.51960742]
[1625525374929,2.2069684,33988.0,33982.0,1.21271521]
[1625525375031,0.057,33987.0,33982.0,1.21271521]
[1625525375129,0.116,33987.0,33982.0,1.21271521]
[1625525375230,0.175,33987.0,33983.0,4.0572]
[1625525375439,0.116,33987.0,33983.0,4.1162]
[1625525375530,0.50935456,33985.0,33983.0,4.1162]
[1625525375635,0.057,33984.0,33983.0,4.1162]
[1625525375780,0.057,33984.0,33983.0,4.1752]
[1625525375980,0.29757544,33984.0,33983.0,4.41926279]
[1625525376081,0.24057544,33984.0,33983.0,5.45856514]
[1625525376632,0.24057544,33984.0,33983.0,7.8837379]
[1625525376984,0.24057544,33984.0,33983.0,9.26948993]
[1625525379689,0.24057544,33984.0,33983.0,9.21048993]
[1625525380995,0.24057544,33984.0,33983.0,10.76963376]
[1625525381095,0.24057544,33984.0,33983.0,10.99836376]
[1625525381445,0.24057544,33984.0,33983.0,9.43921993]
[1625525382500,0.24057544,33984.0,33983.0,9.49821993]
[1625525383049,5.088e-05,33986.0,33983.0,11.05758011]
[1625525383162,0.057,33992.0,33983.0,11.05758011]
[1625525383250,0.057,33992.0,33984.0,0.0881]
[1625525383347,0.057,33992.0,33984.0,0.2061]
[1625525383448,0.057,33992.0,33984.0,0.20958688]
[1625525383602,0.057,33992.0,33991.0,2.25282178]
[1625525383699,0.057,33992.0,33991.0,2.65283178]
[1625525383900,0.057,33992.0,33991.0,2.65631866]
[1625525384003,0.057,33992.0,33991.0,4.35051793]
[1625525384803,0.057,33992.0,33991.0,4.29151793]
[1625525387456,0.057,33993.0,33991.0,4.29151793]
[1625525387707,0.057,33993.0,33992.0,1.73354787]
[1625525387807,0.057,33993.0,33992.0,2.25361223]
[1625525387907,0.057,33993.0,33992.0,2.31609919]
[1625525388459,0.057,33993.0,33992.0,2.37509919]
[1625525389062,0.057,33993.0,33992.0,3.58861639]
[1625525389162,0.057,33993.0,33992.0,3.91659639]
[1625525389530,1.19308725,33996.0,33992.0,3.91659639]
[1625525389729,1.19308725,33996.0,33993.0,0.0891]
[1625525389913,1.19308725,33996.0,33993.0,0.1481]
[1625525390016,1.19308725,33996.0,33994.0,0.00348655]
[1625525390113,1.19308725,33996.0,33995.0,0.48115088]
[1625525390226,0.68226837,33996.0,33995.0,2.50643024]
[1625525390315,0.51225701,33998.0,33995.0,4.06693154]
[1625525390416,0.51225701,33998.0,33997.0,3.8738]
[1625525390515,0.51225701,33998.0,33997.0,3.9328]
[1625525390616,0.51251928,34001.0,33997.0,7.39983266]
[1625525390717,0.51251928,34001.0,33997.0,7.4033191]
[1625525390966,0.51251928,34001.0,33998.0,0.00348639]
[1625525391070,1.19587027,34002.0,34000.0,2.25354594]
[1625525391169,1.19587027,34002.0,34000.0,2.60410594]
[1625525391520,0.01604919,34001.0,34000.0,2.60410594]
[1625525391618,1.21193666,34001.0,34000.0,1.04395875]
[1625525392067,1.21193666,34001.0,34000.0,1.52510963]
[1625525392169,1.21193666,34001.0,34000.0,2.04524448]
[1625525392569,0.52859679,34001.0,34000.0,2.04524448]
[1625525394771,0.68322356,34002.0,34000.0,2.04524448]
[1625525395174,0.68348285,34003.0,34001.0,0.69347866]
[1625525395279,0.68348285,34003.0,34001.0,0.75247866]
[1625525395626,0.68396697,34004.0,34002.0,1.73406795]
[1625525395726,0.74296697,34004.0,34002.0,1.79306795]
[1625525396126,0.059,34004.0,34003.0,2.21520826]
[1625525396226,0.059,34004.0,34003.0,2.27420826]
[1625525396627,0.059,34004.0,34003.0,1.23377383]
[1625525397127,0.059,34004.0,34003.0,2.27398669]
[1625525398129,0.116,34004.0,34003.0,2.27398669]
[1625525398432,0.13205824,34004.0,34003.0,2.21498669]
[1625525399137,3.03587116,34004.0,34003.0,0.48115088]
[1625525399637,3.09487116,34004.0,34003.0,0.48115088]
[1625525399742,3.09487116,34004.0,34003.0,0.24057544]
[1625525399743,4.46123124,34004.0,34003.0,0.24057544]
[1625525400187,4.94238212,34004.0,34003.0,0.24057544]
[1625525400386,4.94238212,34004.0,33997.0,3.8738]
[1625525400486,5.19586212,34004.0,33997.0,3.8738]
[1625525400687,0.01606072,34003.0,33997.0,3.8738]
[1625525400789,2.89968375,33998.0,33994.0,0.69397192]
[1625525400887,0.32033,33997.0,33994.0,0.75297192]
[1625525401037,0.68237975,33995.0,33994.0,0.75297192]
[1625525401138,0.73937975,33995.0,33994.0,0.75297192]
[1625525401338,0.73937975,33995.0,33994.0,0.69397192]
[1625525401641,1.76284096,33995.0,33994.0,0.69397192]
[1625525402140,2.0034164,33995.0,33994.0,0.69397192]
[1625525403144,0.97995519,33995.0,33994.0,1.73526376]
[1625525404595,2.00432581,33995.0,33994.0,1.73526376]
[1625525405245,2.00432581,33995.0,33994.0,1.82436376]
[1625525405445,2.00432581,33995.0,33994.0,1.73526376]
[1625525406096,0.97995519,33995.0,33994.0,1.73526376]
[1625525406546,0.97995519,33995.0,33994.0,2.95064719]
[1625525406947,0.97995519,33995.0,33994.0,1.73526376]
[1625525408000,0.92295519,33995.0,33994.0,1.73526376]
[1625525408101,0.92295519,33995.0,33994.0,1.79426376]
[1625525408201,0.68237975,33995.0,33994.0,2.0348392]
[1625525408402,0.68237975,33995.0,33994.0,2.0938392]
[1625525408502,0.68237975,33995.0,33994.0,2.09732565]
[1625525408603,0.68361798,33997.0,33994.0,4.70195998]
[1625525408857,0.68390882,33998.0,33996.0,4.34094635]
[1625525408962,0.68390882,33998.0,33996.0,4.80684635]
[1625525409455,0.68400502,33999.0,33997.0,2.95183733]
[1625525409554,0.68400502,33999.0,33997.0,3.06983733]
[1625525410006,0.68400502,33999.0,33998.0,2.95173249]
[1625525410206,0.68400502,33999.0,33998.0,3.49188337]
[1625525411009,0.68414056,34000.0,33998.0,3.49188337]
[1625525411358,0.68414056,34000.0,33999.0,0.69460135]
[1625525411458,0.68414056,34000.0,33999.0,2.95205573]
[1625525411660,0.7002589,34000.0,33999.0,2.95205573]
[1625525412159,0.68414056,34000.0,33999.0,2.95205573]
[1625525412260,0.68414056,34000.0,33999.0,3.01105573]
[1625525412459,0.70025975,34000.0,33999.0,3.01105573]
[1625525414365,0.68414056,34000.0,33999.0,3.01454205]
[1625525414865,0.6844207,34002.0,33999.0,4.4036248]
[1625525414969,0.6844207,34002.0,34000.0,0.0888]
[1625525415064,0.6844207,34002.0,34000.0,0.1478]
[1625525415167,0.6844207,34002.0,34000.0,0.15128607]
[1625525415364,0.6844207,34002.0,34000.0,0.1478]
[1625525415465,0.6844802,34003.0,34001.0,4.34028025]
[1625525415565,0.6844802,34003.0,34001.0,4.39928025]
[1625525416066,0.68454338,34004.0,34002.0,2.95136638]
[1625525416166,0.74354338,34004.0,34002.0,7.55056638]
[1625525416267,0.74354338,34004.0,34003.0,0.48115088]
[1625525416367,0.74354338,34004.0,34003.0,0.87568088]
[1625525416472,0.74354338,34004.0,34003.0,3.82676721]
[1625525416567,0.75966097,34004.0,34003.0,3.82676721]
[1625525418821,1.78560977,34004.0,34003.0,2.61161401]
[1625525419223,1.84260977,34004.0,34003.0,2.61161401]
[1625525419423,1.84260977,34004.0,34003.0,1.57005413]
[1625525420027,3.03962549,34004.0,34003.0,1.51105413]
[1625525420327,3.03962549,34004.0,34003.0,1.17552413]
[1625525420779,3.09862549,34004.0,34003.0,1.17552413]
[1625525421079,3.09862549,34004.0,34003.0,0.24057544]
[1625525421080,4.46494528,34004.0,34003.0,0.24057544]
[1625525421178,4.46494528,34004.0,34000.0,0.6942309]
[1625525421278,4.72874528,34004.0,34000.0,0.6942309]
[1625525421429,5.1081,34002.0,34000.0,0.6942309]
[1625525421529,0.116,34001.0,34000.0,0.6942309]
[1625525421629,0.175,34001.0,34000.0,0.6942309]
[1625525421730,4.44107662,34001.0,33998.0,0.24057544]
[1625525421832,4.44107662,34001.0,33997.0,0.69427878]
[1625525421930,4.45719726,34001.0,33997.0,0.69427878]
[1625525422231,4.982974,33998.0,33994.0,0.69432512]
[1625525422330,0.057,33997.0,33994.0,0.69432512]
[1625525422430,0.43322,33997.0,33994.0,0.69432512]
[1625525422682,2.89604973,33995.0,33992.0,0.9348973]
[1625525422782,0.057,33994.0,33992.0,0.9348973]
[1625525422882,0.116,33994.0,33992.0,0.9348973]
[1625525422987,2.894313,33993.0,33992.0,0.24057544]
[1625525423087,2.951313,33993.0,33992.0,0.24057544]
[1625525423233,2.96738411,33993.0,33992.0,0.24057544]
[1625525424235,3.20795955,33993.0,33992.0,0.24057544]
[1625525424738,3.19188844,33993.0,33992.0,0.24057544]
[1625525424990,0.97864033,33993.0,33992.0,6.51599509]
[1625525425892,1.25770033,33993.0,33992.0,6.51599509]
[1625525425992,1.25770033,33993.0,33992.0,1.97609509]
[1625525426293,1.25770033,33993.0,33992.0,0.9347833]
[1625525426294,2.27616036,33993.0,33992.0,0.9347833]
[1625525426646,2.27616036,33993.0,33992.0,0.24057544]
[1625525428701,2.27616036,33993.0,33992.0,0.29957544]
[1625525428903,2.27616036,33993.0,33992.0,4.78637544]
[1625525429253,2.27616036,33993.0,33992.0,6.5216797]
[1625525429254,0.57663544,33993.0,33992.0,6.5216797]
[1625525429354,0.29757544,33993.0,33992.0,6.5216797]
[1625525429555,0.29757544,33993.0,33992.0,6.4626797]
[1625525429906,0.97793249,33993.0,33992.0,6.4626797]
[1625525432412,0.97793249,33993.0,33992.0,6.5216797]
[1625525432512,0.97793249,33993.0,33992.0,6.7978097]
[1625525432612,0.73735705,33993.0,33992.0,6.7978097]
[1625525432863,0.68043334,33994.0,33992.0,6.7978097]
[1625525432969,0.68043334,33994.0,33992.0,6.8568097]
[1625525433715,0.68092802,33997.0,33993.0,2.94969229]
[1625525433815,0.68092802,33997.0,33993.0,3.00869229]
[1625525433914,0.68092802,33997.0,33993.0,3.06769229]
[1625525434317,0.68121434,33998.0,33996.0,2.21620331]
[1625525434419,0.68121434,33998.0,33996.0,2.27520331]
[1625525434517,0.68121434,33998.0,33996.0,2.33420331]
[1625525434721,1.02173637,33999.0,33997.0,2.95011904]
[1625525434722,0.68131559,33999.0,33997.0,2.95011904]
[1625525434816,0.68131559,33999.0,33997.0,3.06811904]
[1625525435067,0.68117524,34000.0,33998.0,1.73543017]
[1625525435268,0.68117524,34000.0,33998.0,1.79443017]
[1625525435582,0.68105868,33999.0,33998.0,0.059]
[1625525436170,0.68102044,34000.0,33998.0,3.00921515]
[1625525436372,0.68102044,34000.0,33999.0,0.24057544]
[1625525436470,0.68102044,34000.0,33999.0,0.47569544]
[1625525436571,0.68142207,34001.0,33999.0,3.48533458]
[1625525436674,0.68142207,34001.0,34000.0,0.0891]
[1625525436881,0.68173015,34003.0,34000.0,3.09871404]
[1625525436972,0.68173015,34003.0,34000.0,3.15771404]
[1625525437072,0.68173015,34003.0,34000.0,3.16119991]
[1625525437170,0.68173015,34003.0,34000.0,3.07209991]
[1625525437273,0.68173015,34003.0,34000.0,3.06861404]
[1625525437623,1.02251003,34004.0,34000.0,3.06861404]
[1625525437624,0.68207227,34005.0,34002.0,8.05978579]
[1625525437722,0.68207227,34005.0,34003.0,0.059]
[1625525438025,0.68207227,34005.0,34004.0,1.73550525]
[1625525438124,0.68207227,34005.0,34004.0,1.85350525]
[1625525438324,0.68207227,34005.0,34004.0,2.33465613]
[1625525438527,0.68216306,34006.0,34004.0,3.54942764]
[1625525438825,0.68216306,34006.0,34005.0,1.7353679]
[1625525438927,0.68216306,34006.0,34005.0,1.7943679]
[1625525439025,0.73916306,34006.0,34005.0,1.8533679]
[1625525439125,0.68216306,34006.0,34005.0,1.8533679]
[1625525439526,0.73916306,34006.0,34005.0,1.8533679]
[1625525439830,1.76201046,34006.0,34005.0,0.81214716]
[1625525440328,1.76201046,34006.0,34005.0,1.0527226]
[1625525441179,1.76201046,34006.0,34005.0,0.9937226]
[1625525441330,1.76201046,34006.0,34005.0,1.0527226]
[1625525441532,2.95488746,34006.0,34005.0,0.35857544]
[1625525441630,2.97101854,34006.0,34005.0,0.35857544]
[1625525442185,2.97101854,34006.0,34005.0,0.29957544]
[1625525443435,4.33477405,34006.0,34005.0,0.29957544]
[1625525450854,2.97101854,34006.0,34005.0,0.29957544]
[1625525452509,8.17615046,34006.0,34005.0,0.24057544]
[1625525452605,8.45872046,34006.0,34005.0,0.24057544]
[1625525453256,9.98133408,34006.0,34005.0,0.24057544]
[1625525458220,9.98133408,34006.0,34005.0,7.544e-05]
[1625525458520,10.22190952,34006.0,34005.0,7.544e-05]
[1625525461524,10.25677587,34006.0,34005.0,7.544e-05]
[1625525463426,9.85677587,34006.0,34005.0,7.544e-05]
[1625525465536,9.82190952,34006.0,34005.0,7.544e-05]
[1625525465835,9.8567758,34006.0,34005.0,7.544e-05]
[1625525466334,9.82190952,34006.0,34005.0,7.544e-05]
[1625525467538,9.85677544,34006.0,34005.0,7.544e-05]
[1625525468042,9.82190952,34006.0,34005.0,7.544e-05]
[1625525468844,9.85677528,34006.0,34005.0,7.544e-05]
[1625525470747,9.85677528,34006.0,34000.0,0.08681056]
[1625525470848,9.85677528,34006.0,34000.0,0.14581056]
[1625525470950,9.85677528,34006.0,34000.0,0.059]
[1625525471199,0.05099155,34005.0,34000.0,0.059]
[1625525471299,0.10999155,34005.0,34000.0,0.059]
[1625525471398,3.54931639,34001.0,34000.0,0.059]
[1625525471499,3.60631639,34001.0,34000.0,0.059]
[1625525471750,3.62244129,34001.0,34000.0,0.059]
[1625525472702,3.86301673,34001.0,34000.0,0.059]
[1625525474456,3.86301673,34001.0,33999.0,0.24057544]
[1625525474758,0.24057544,34000.0,33999.0,0.24057544]
[1625525474857,0.29757544,34000.0,33999.0,0.24057544]
[1625525474958,0.3137011,34000.0,33999.0,0.24057544]
[1625525475160,4.3513,33999.0,33998.0,0.08681225]
[1625525475266,4.77619,33999.0,33998.0,0.08681225]
[1625525475459,4.85131655,33999.0,33998.0,0.08681225]
[1625525475559,4.85131655,33999.0,33995.0,1.04174697]
[1625525475560,9.91491823,33999.0,33994.0,0.08682593]
[1625525475863,9.94979046,33999.0,33994.0,2.593e-05]
[1625525476078,5.05771938,33995.0,33987.0,1.2825602]
[1625525476160,0.057,33994.0,33987.0,1.2825602]
[1625525476363,0.116,33994.0,33987.0,1.2825602]
[1625525476462,0.0161283,33993.0,33987.0,1.2825602]
[1625525476562,1.01132273,33988.0,33987.0,0.24057544]
[1625525476660,1.31178273,33988.0,33987.0,0.24057544]
[1625525476760,1.85193361,33988.0,33987.0,0.24057544]
[1625525476912,1.86806233,33988.0,33987.0,0.24057544]
[1625525477012,3.04719108,33988.0,33987.0,0.24057544]
[1625525479821,4.39291717,33988.0,33987.0,0.24057544]
[1625525480020,4.39291717,33988.0,33982.0,1.04132966]
[1625525480120,5.2834,33986.0,33982.0,1.04132966]
[1625525480220,0.057,33985.0,33982.0,1.04132966]
[1625525480319,0.116,33985.0,33982.0,1.04132966]